fUSD/lending_fUSD_20250517
["ID","MTS","AMOUNT","RATE_DAILY","PERIOD"]
[361322592,1747469448557,-151.32,0.00023074,2]
[361322593,1747469448567,-308.27,0.00023074,2]
[361322594,1747469448576,-300.36,0.00023075,2]
[361322595,1747469448586,-150.0,0.00023081,2]
[361322596,1747469448596,-150.0,0.00023084,4]
[361322597,1747469448606,-287.17,0.00023088,2]
[361322598,1747469448617,-151.37,0.00023088,2]
[361322599,1747469448626,-150.0,0.00023088,2]
[361322600,1747469448636,-150.0,0.00023088,2]
[361322601,1747469448645,-150.0,0.00023121,4]
[361322602,1747469448654,-168.3888056,0.00023131,2]
[361322603,1747469448663,-745.65223616,0.00023131,2]
[361322604,1747469448671,-231.28369723,0.00023131,2]
[361322605,1747469448680,-150.0,0.00023157,4]
[361322606,1747469448690,-150.0,0.00023194,4]
[361322607,1747469448700,-50446.37885991,0.000232,2]
[361322608,1747469448709,-1000.0,0.00023212,2]
[361322609,1747469448719,-150.0,0.00023216,2]
[361322610,1747469448728,-1000.0,0.00023217,2]
[361322611,1747469448739,-150.0,0.0002323,4]
[361322612,1747469448748,-1000.0,0.00023237,2]
[361322613,1747469448758,-150.0,0.00023267,4]
[361322614,1747469448767,-1000.0,0.0002327,2]
[361322615,1747469448776,-500.0,0.0002327,2]
[361322616,1747469448786,-1000.0,0.00023272,2]
[361322617,1747469448795,-1000.0,0.0002328,2]
[361322618,1747469448805,-155.0,0.00023288,2]
[361322619,1747469448814,-151.0,0.00023295,7]
[361322620,1747469448825,-150.0,0.00023304,4]
[361322621,1747469448834,-1000.0,0.00023305,2]
[361322622,1747469448843,-150.0,0.00023308,2]
[361322623,1747469448853,-150.0,0.0002334,4]
[361322624,1747469448863,-4978.9233357,0.00023344,2]
[361322625,1747469448874,-150.0,0.00023377,4]
[361322626,1747469448884,-38335.66,0.000234,7]
[361322627,1747469448894,-150.0,0.00023413,4]
[361322628,1747469448904,-150.0,0.0002345,4]
[361322629,1747469448914,-150.0,0.00023487,4]
[361322630,1747469448923,-200.0,0.000235,2]
[361322631,1747469448932,-15000.0,0.000235,5]
[361322632,1747469448942,-151.0,0.000235,7]
[361322633,1747469448952,-150.0,0.00023523,4]
[361322634,1747469448961,-150.0,0.00023539,2]
[361322635,1747469448971,-150.0,0.0002356,4]
[361322636,1747469448981,-150.0,0.0002356,2]
[361322637,1747469448990,-201.93286099,0.00023562,2]
[361322638,1747469448999,-150.0,0.00023563,2]
[361322639,1747469449009,-3968.5077,0.00023591,2]
[361322640,1747469449018,-150.0,0.00023596,4]
[361322641,1747469449027,-512.913251,0.000236,14]
[361322642,1747469449037,-1029.66267596,0.00023618,2]
[361322643,1747469449046,-1489.16733519,0.00023618,2]
[361322644,1747469449057,-154.0,0.00023618,2]
[361322645,1747469449067,-150.0,0.00023633,4]
[361322646,1747469449077,-150.0,0.00023669,4]
[361322647,1747469449086,-2959.89,0.000237,7]
[361322648,1747469449095,-150.0,0.00023706,4]
[361322649,1747469449105,-150.0,0.0002372,2]
[361322650,1747469449114,-150.0,0.00023743,4]
[361322651,1747469449123,-150.0,0.00023757,2]
[361322652,1747469449132,-151.0,0.00023767,7]
[361322653,1747469449141,-1000.0,0.00023767,2]
[361322654,1747469449151,-150.0,0.00023779,4]
[361322655,1747469449160,-150.0,0.00023816,4]
[361322656,1747469449169,-156.0,0.00023836,2]
[361322657,1747469449178,-1691.54,0.00023836,2]
[361322658,1747469449187,-380.073521,0.00023836,7]
[361322659,1747469449196,-380.073521,0.00023836,7]
[361322660,1747469449205,-150.0,0.00023852,4]
[361322661,1747469449214,-150.0,0.00023889,4]
[361322662,1747469449224,-452.87,0.00023895,2]
[361322663,1747469449233,-452.87,0.00023895,2]
[361322664,1747469449242,-1157.59,0.00023896,2]
[361322665,1747469449252,-2178.59,0.00023896,2]
[361322666,1747469449261,-190.12908569,0.000239,2]
[361322667,1747469449271,-388.55374169,0.000239,2]
[361322668,1747469449279,-678.20589847,0.000239,2]
[361322669,1747469449289,-678.20589838,0.000239,2]
[361322670,1747469449298,-678.20589838,0.000239,2]
[361322671,1747469449310,-678.20589838,0.000239,2]
[361322672,1747469449320,-678.20589838,0.000239,2]
[361322673,1747469449332,-678.20589838,0.000239,2]
[361322674,1747469449341,-678.20589838,0.000239,2]
[361322675,1747469449351,-678.20589838,0.000239,2]
[361322676,1747469449360,-678.20589838,0.000239,2]
[361322677,1747469449371,-678.20589838,0.000239,2]
[361322678,1747469449380,-865.15,0.0002391,2]
[361322679,1747469449390,-150.0,0.00023912,2]
[361322680,1747469449400,-150.0,0.00023926,4]
[361322681,1747469449409,-680.6,0.00023931,2]
[361322682,1747469449419,-150.0,0.00023962,4]
[361322683,1747469449428,-150.0,0.00023999,4]
[361322684,1747469449439,-986.58434939,0.00024,2]
[361322685,1747469449449,-9899.88726235,0.00024,14]
[361322686,1747469449459,-500.0,0.00024,2]
[361322687,1747469449468,-59727.81534644,0.00024,2]
[361322688,1747469449477,-81414.92267855,0.00024,2]
[361322689,1747469449486,-900.0,0.00024,25]
[361322690,1747469449496,-1293.67709896,0.00024,2]
[361322691,1747469449506,-1000.0,0.00024,2]
[361322692,1747469449515,-15000.0,0.00024,5]
[361322693,1747469449524,-384.21,0.00024,7]
[361322694,1747469449533,-151.0,0.00024,7]
[361322695,1747469449543,-151.0,0.00024,7]
[361322696,1747469449553,-151.0,0.00024,7]
[361322697,1747469449563,-1000.0,0.00024,24]
[361322698,1747469449573,-174.676059,0.00024,7]
[361322699,1747469449583,-174.676059,0.00024,7]
[361322700,1747469449592,-151.0,0.00024,7]
[361322701,1747469449602,-274.7923,0.00024,7]
[361322702,1747469449611,-182.657876,0.00024,7]
[361322703,1747469449621,-182.657876,0.00024,7]
[361322704,1747469449630,-2323.141385,0.00024,7]
[361322705,1747469449639,-2323.141385,0.00024,7]
[361322706,1747469449648,-150.0,0.00024002,2]
[361322707,1747469449658,-150.0,0.00024035,4]
[361322708,1747469449668,-150.0,0.00024072,4]
[361322709,1747469449678,-20000.0,0.00024088,2]
[361322710,1747469449688,-300.0,0.00024099,2]
[361322711,1747469449697,-1685.35268009,0.000241,2]
[361322712,1747469449707,-38335.66,0.000241,7]
[361322713,1747469449716,-296.369035,0.000241,7]
[361322714,1747469449726,-182.657876,0.000241,7]
[361322715,1747469449735,-182.657876,0.000241,7]
[361322716,1747469449745,-2323.141385,0.000241,7]
[361322717,1747469449755,-2323.1413846,0.000241,7]
[361322718,1747469449765,-2000.0,0.000241,2]
[361322719,1747469449774,-150.0,0.00024108,4]
[361322720,1747469449783,-209.40437684,0.0002411,2]
[361322721,1747469449793,-150.0,0.00024145,4]
[361322722,1747469449803,-678.20589838,0.00024164,2]
[361322723,1747469449813,-300.0,0.00024171,2]
[361322724,1747469449822,-174.676059,0.00024172,7]
[361322725,1747469449833,-174.676064,0.00024172,7]
[361322726,1747469449846,-168.4,0.00024176,2]
[361322727,1747469449855,-150.0,0.00024182,4]
[361322728,1747469449864,-611.92,0.00024195,2]
[361322729,1747469449873,-407.74124468,0.0002421,2]
[361322730,1747469449883,-3573.46108677,0.0002421,2]
[361322731,1747469449892,-150.0,0.00024214,2]
[361322732,1747469449900,-150.0,0.00024218,4]
[361322733,1747469449909,-150.0,0.00024225,2]
[361322734,1747469449918,-266.39320646,0.00024235,2]
[361322735,1747469449927,-802.53,0.00024254,2]
[361322736,1747469449936,-150.0,0.00024255,4]
[361322737,1747469449944,-1000.0,0.0002428,2]
[361322738,1747469449953,-1000.0,0.00024283,2]
[361322739,1747469449962,-4978.9233357,0.00024288,2]
[361322740,1747469449972,-150.0,0.00024291,4]
[361322741,1747469449982,-150.0,0.0002432,2]
[361322742,1747469449992,-1000.0,0.00024324,2]
[361322743,1747469450003,-150.0,0.00024328,4]
[361322744,1747469450013,-1000.0,0.00024364,2]
[361322745,1747469450022,-150.0,0.00024365,4]
[361322746,1747469450032,-1000.0,0.00024373,2]
[361322747,1747469450043,-268.07002253,0.00024384,2]
[361322748,1747469450053,-1000.0,0.00024384,2]
[361322749,1747469450063,-150.0,0.00024386,2]
[361322750,1747469450073,-150.0,0.00024401,4]
[361322751,1747469450083,-150.0,0.00024408,2]
[361322752,1747469450092,-1000.0,0.00024429,2]
[361322753,1747469450367,-150.0,0.00024438,4]
[361322754,1747469450378,-1000.0,0.00024441,2]
[361322755,1747469450387,-1000.0,0.0002446,2]
[361322756,1747469450396,-234.68256595,0.00024465,2]
[361322757,1747469450405,-678.20589838,0.00024468,2]
[361322758,1747469450415,-150.0,0.00024474,4]
[361322759,1747469450424,-300.0,0.00024499,2]
[361322760,1747469450433,-363.25448129,0.00024499,2]
[361322761,1747469450442,-174.61919141,0.000245,2]
[361322762,1747469450451,-773.2413689,0.000245,2]
[361322763,1747469450461,-239.84119403,0.000245,2]
[361322764,1747469450471,-1070.53929067,0.000245,2]
[361322765,1747469450481,-2959.89,0.000245,7]
[361322766,1747469450490,-1136.20846357,0.000245,2]
[361322767,1747469450500,-1050.37903118,0.000245,2]
[361322768,1747469450510,-1035.66270794,0.000245,2]
[361322769,1747469450520,-1145.559344,0.000245,2]
[361322770,1747469450530,-1077.62749857,0.000245,2]
[361322771,1747469450540,-15000.0,0.000245,5]
[361322772,1747469450550,-1023.29280057,0.000245,2]
[361322773,1747469450562,-1085.87234892,0.000245,2]
[361322774,1747469450572,-1105.58382341,0.000245,2]
[361322775,1747469450582,-1081.41447335,0.000245,2]
[361322776,1747469450591,-1026.40348899,0.000245,2]
[361322777,1747469450600,-1146.25403185,0.000245,2]
[361322778,1747469450610,-1101.3787043,0.000245,2]
[361322779,1747469450619,-1088.20320812,0.000245,2]
[361322780,1747469450628,-1125.27885505,0.000245,2]
[361322781,1747469450638,-1076.66252951,0.000245,2]
[361322782,1747469450647,-1101.18008166,0.000245,2]
[361322783,1747469450657,-155.0,0.00024502,2]
[361322784,1747469450666,-150.0,0.00024507,2]
[361322785,1747469450675,-150.0,0.00024509,2]
[361322786,1747469450684,-150.0,0.00024511,4]
[361322787,1747469450694,-150.0,0.00024512,2]
[361322788,1747469450704,-1000.0,0.00024542,2]
[361322789,1747469450713,-150.0,0.00024544,2]
[361322790,1747469450722,-150.0,0.00024547,4]
[361322791,1747469450731,-150.0,0.00024548,2]
[361322792,1747469450741,-150.0,0.00024552,2]
[361322793,1747469450750,-1000.0,0.0002456,2]
[361322794,1747469450759,-150.0,0.00024579,2]
[361322795,1747469450768,-150.0,0.00024584,4]
[361322796,1747469450778,-150.0,0.00024588,2]
[361322797,1747469450787,-150.0,0.00024594,2]
[361322798,1747469450796,-2000.0,0.000246,2]
[361322799,1747469450807,-151.0,0.0002461,7]
[361322800,1747469450816,-3370.87019,0.0002461,2]
[361322801,1747469450826,-150.0,0.00024617,2]
[361322802,1747469450834,-150.0,0.00024621,4]
[361322803,1747469450843,-150.0,0.00024644,2]
[361322804,1747469450853,-707.10644734,0.00024649,2]
[361322805,1747469450864,-150.0,0.00024654,2]
[361322806,1747469450874,-150.0,0.00024657,4]
[361322807,1747469450883,-1000.0,0.00024658,2]
[361322808,1747469450892,-157.512908,0.00024658,7]
[361322809,1747469450902,-157.512908,0.00024658,7]
[361322810,1747469450911,-157.512908,0.00024658,7]
[361322811,1747469450920,-157.512908,0.00024658,7]
[361322812,1747469450930,-157.512908,0.00024658,7]
[361322813,1747469450939,-157.512908,0.00024658,7]
[361322814,1747469450948,-157.512908,0.00024658,7]
[361322815,1747469450958,-157.512908,0.00024658,7]
[361322816,1747469450967,-157.512908,0.00024658,7]
[361322817,1747469450976,-157.512908,0.00024658,7]
[361322818,1747469450986,-157.512908,0.00024658,7]
[361322819,1747469450995,-157.512908,0.00024658,7]
[361322820,1747469451004,-157.512908,0.00024658,7]
[361322821,1747469451013,-157.512908,0.00024658,7]
[361322822,1747469451022,-157.512908,0.00024658,7]
[361322823,1747469451031,-157.512908,0.00024658,7]
[361322824,1747469451040,-157.512908,0.00024658,7]
[361322825,1747469451049,-157.512908,0.00024658,7]
[361322826,1747469451062,-157.512908,0.00024658,7]
[361322827,1747469451071,-157.512915,0.00024658,7]
[361322828,1747469451080,-200.0,0.00024658,4]
[361322829,1747469451090,-162.35127376,0.00024658,2]
[361322830,1747469451098,-616.62,0.00024658,2]
[361322831,1747469451107,-258.43,0.00024658,4]
[361322832,1747469451117,-380.073521,0.00024658,7]
[361322833,1747469451126,-380.073521,0.00024658,7]
[361322834,1747469451135,-150.0,0.00024658,2]
[361322835,1747469451145,-217.15233878,0.00024658,2]
[361322836,1747469451154,-150.0,0.00024671,2]
[361322837,1747469451163,-150.0,0.00024675,2]
[361322838,1747469451172,-150.0,0.00024694,4]
[361322839,1747469451181,-384.16279604,0.000247,7]
[361322840,1747469451191,-300.0,0.00024717,10]
[361322841,1747469451200,-1157.59,0.00024718,2]
[361322842,1747469451210,-1157.59,0.00024718,2]
[361322843,1747469451219,-1157.59,0.00024718,2]
[361322844,1747469451228,-1154.21,0.00024718,2]
[361322845,1747469451238,-450.3,0.00024718,2]
[361322846,1747469451247,-1025.01846152,0.0002472,2]
[361322847,1747469451256,-1025.50795598,0.0002472,2]
[361322848,1747469451265,-150.0,0.0002473,2]
[361322849,1747469451275,-150.0,0.0002473,4]
[361322850,1747469451284,-150.0,0.00024733,2]
[361322851,1747469451293,-150.0,0.00024767,4]
[361322852,1747469451303,-150.0,0.00024768,2]
[361322853,1747469451315,-678.20589838,0.00024772,2]
[361322854,1747469451328,-150.0,0.0002478,2]
[361322855,1747469451337,-247.76518841,0.0002479,2]
[361322856,1747469451347,-300.0,0.00024799,10]
[361322857,1747469451356,-300.0,0.00024799,10]
[361322858,1747469451367,-300.0,0.00024799,10]
[361322859,1747469451376,-300.0,0.00024799,10]
[361322860,1747469451385,-300.0,0.00024799,10]
[361322861,1747469451395,-300.0,0.00024799,10]
[361322862,1747469451406,-300.0,0.00024799,10]
[361322863,1747469451416,-300.0,0.00024799,10]
[361322864,1747469451425,-300.0,0.00024799,10]
[361322865,1747469451434,-38335.66,0.000248,7]
[361322866,1747469451444,-151.0,0.000248,7]
[361322867,1747469451453,-151.0,0.000248,7]
[361322868,1747469451463,-151.0,0.000248,7]
[361322869,1747469451473,-380.073521,0.000248,7]
[361322870,1747469451482,-380.073521,0.000248,7]
[361322871,1747469451492,-1644.36567997,0.000248,2]
[361322872,1747469451502,-399631.161655,0.000248,3]
[361322873,1747469451512,-150.0,0.00024804,4]
[361322874,1747469451522,-1000.0,0.00024811,2]
[361322875,1747469451531,-1000.0,0.00024821,2]
[361322876,1747469451540,-451.02021991,0.00024823,2]
[361322877,1747469451549,-150.0,0.00024831,2]
[361322878,1747469451562,-150.0,0.0002484,4]
[361322879,1747469451572,-150.0,0.0002487,2]
[361322880,1747469451581,-1186.0,0.00024871,2]
[361322881,1747469451591,-1104.07,0.00024871,2]
[361322882,1747469451601,-300.0,0.00024872,10]
[361322883,1747469451611,-300.0,0.00024872,10]
[361322884,1747469451621,-300.0,0.00024872,10]
[361322885,1747469451630,-300.0,0.00024872,10]
[361322886,1747469451639,-39963.1161655,0.00024873,3]
[361322887,1747469451649,-2000.0,0.00024875,2]
[361322888,1747469451658,-2000.0,0.00024875,2]
[361322889,1747469451668,-164.50135297,0.00024877,4]
[361322890,1747469451677,-300.0,0.00024882,10]
[361322891,1747469451686,-300.0,0.00024882,10]
[361322892,1747469451696,-300.0,0.00024882,10]
[361322893,1747469451705,-300.0,0.00024882,10]
[361322894,1747469451714,-300.0,0.00024882,10]
[361322895,1747469451724,-300.0,0.00024882,10]
[361322896,1747469451733,-24311.3816336,0.00024883,2]
[361322897,1747469451743,-7014.0971103,0.00024883,2]
[361322898,1747469451752,-19330.4152816,0.00024883,2]
[361322899,1747469451761,-18776.9589423,0.00024883,2]
[361322900,1747469451771,-150.0,0.00024884,2]
[361322901,1747469451780,-300.0,0.00024889,10]
[361322902,1747469451790,-300.0,0.00024889,10]
[361322903,1747469451799,-300.0,0.00024889,10]
[361322904,1747469451809,-1000.0,0.0002489,2]
[361322905,1747469451818,-199815.580827,0.0002489,3]
[361322906,1747469451828,-150.0,0.00024898,2]
[361322907,1747469451837,-150.0,0.00024898,2]
[361322908,1747469451847,-300.0,0.00024899,10]
[361322909,1747469451856,-300.0,0.00024899,10]
[361322910,1747469451865,-300.0,0.00024899,10]
[361322911,1747469451874,-420.6574815,0.00024899,10]
[361322912,1747469451884,-368.0026931,0.000249,2]
[361322913,1747469451893,-10067.66977178,0.000249,2]
[361322914,1747469451902,-151.0,0.000249,7]
[361322915,1747469451912,-380.073521,0.000249,7]
[361322916,1747469451921,-380.073525,0.000249,7]
[361322917,1747469451931,-151.0,0.000249,7]
[361322918,1747469451940,-151.0,0.000249,7]
[361322919,1747469451949,-151.0,0.000249,7]
[361322920,1747469451959,-151.0,0.000249,7]
[361322921,1747469451968,-151.0,0.000249,7]
[361322922,1747469451977,-151.0,0.000249,7]
[361322923,1747469451987,-151.0,0.000249,7]
[361322924,1747469451997,-151.0,0.000249,7]
[361322925,1747469452006,-151.0,0.000249,7]
[361322926,1747469452016,-151.0,0.000249,7]
[361322927,1747469452025,-151.0,0.000249,7]
[361322928,1747469452035,-151.0,0.000249,7]
[361322929,1747469452044,-151.0,0.000249,7]
[361322930,1747469452053,-151.0,0.000249,7]
[361322931,1747469452064,-151.718575,0.000249,7]
[361322932,1747469452073,-152.519111,0.000249,7]
[361322933,1747469452083,-151.0,0.000249,7]
[361322934,1747469452092,-285.050267,0.000249,7]
[361322935,1747469452102,-151.0,0.000249,7]
[361322936,1747469452111,-151.0,0.000249,7]
[361322937,1747469452120,-156.854024,0.000249,7]
[361322938,1747469452130,-151.0,0.000249,7]
[361322939,1747469452139,-151.0,0.000249,7]
[361322940,1747469452149,-188.201476,0.000249,7]
[361322941,1747469452158,-151.0,0.000249,7]
[361322942,1747469452168,-188.201476,0.000249,7]
[361322943,1747469452177,-151.0,0.000249,7]
[361322944,1747469452186,-151.0,0.000249,7]
[361322945,1747469452195,-151.0,0.000249,7]
[361322946,1747469452205,-151.0,0.000249,7]
[361322947,1747469452215,-189.483764,0.000249,7]
[361322948,1747469452224,-151.0,0.000249,7]
[361322949,1747469452233,-151.0,0.000249,7]
[361322950,1747469452243,-331.790415,0.000249,7]
[361322951,1747469452252,-331.790415,0.000249,7]
[361322952,1747469452261,-151.0,0.000249,7]
[361322953,1747469452270,-151.0,0.000249,7]
[361322954,1747469452279,-233.241136,0.000249,7]
[361322955,1747469452288,-151.0,0.000249,7]
[361322956,1747469452297,-151.0,0.000249,7]
[361322957,1747469452306,-190.544553,0.000249,7]
[361322958,1747469452318,-190.544553,0.000249,7]
[361322959,1747469452330,-320.247069,0.000249,7]
[361322960,1747469452339,-320.247069,0.000249,7]
[361322961,1747469452348,-151.0,0.000249,7]
[361322962,1747469452357,-151.0,0.000249,7]
[361322963,1747469452367,-151.0,0.000249,7]
[361322964,1747469452376,-151.0,0.000249,7]
[361322965,1747469452385,-151.0,0.000249,7]
[361322966,1747469452394,-151.0,0.000249,7]
[361322967,1747469452404,-177.293075,0.000249,7]
[361322968,1747469452413,-151.0,0.000249,7]
[361322969,1747469452423,-151.0,0.000249,7]
[361322970,1747469452432,-151.0,0.000249,7]
[361322971,1747469452440,-151.0,0.000249,7]
[361322972,1747469452449,-151.0,0.000249,7]
[361322973,1747469452459,-151.0,0.000249,7]
[361322974,1747469452468,-151.0,0.000249,7]
[361322975,1747469452477,-151.0,0.000249,7]
[361322976,1747469452487,-151.0,0.000249,7]
[361322977,1747469452496,-151.0,0.000249,7]
[361322978,1747469452506,-151.0,0.000249,7]
[361322979,1747469452515,-151.0,0.000249,7]
[361322980,1747469452524,-1125.241486,0.000249,7]
[361322981,1747469452534,-297.506607,0.000249,7]
[361322982,1747469452543,-1125.241486,0.000249,7]
[361322983,1747469452552,-151.0,0.000249,7]
[361322984,1747469452562,-151.0,0.000249,7]
[361322985,1747469452572,-151.0,0.000249,7]
[361322986,1747469452581,-151.0,0.000249,7]
[361322987,1747469452591,-151.0,0.000249,7]
[361322988,1747469452600,-894.77814,0.000249,7]
[361322989,1747469452609,-151.0,0.000249,7]
[361322990,1747469452619,-894.77814,0.000249,7]
[361322991,1747469452629,-151.0,0.000249,7]
[361322992,1747469452638,-290.552889,0.000249,7]
[361322993,1747469452648,-151.0,0.000249,7]
[361322994,1747469452657,-165.183908,0.000249,7]
[361322995,1747469452667,-151.0,0.000249,7]
[361322996,1747469452676,-165.183908,0.000249,7]
[361322997,1747469452686,-151.0,0.000249,7]
[361322998,1747469452695,-151.0,0.000249,7]
[361322999,1747469452705,-151.0,0.000249,7]
[361323000,1747469452714,-151.0,0.000249,7]
[361323001,1747469452723,-151.0,0.000249,7]
[361323002,1747469452732,-151.0,0.000249,7]
[361323003,1747469452742,-151.364239,0.000249,7]
[361323004,1747469452751,-151.0,0.000249,7]
[361323005,1747469452760,-151.0,0.000249,7]
[361323006,1747469452770,-151.0,0.000249,7]
[361323007,1747469452779,-151.0,0.000249,7]
[361323008,1747469452788,-259.937588,0.000249,7]
[361323009,1747469452797,-309958.735033,0.000249,3]
[361323010,1747469452807,-6000.0,0.000249,7]
[361323011,1747469452817,-6000.0,0.000249,7]
[361323012,1747469452827,-151.0,0.000249,7]
[361323013,1747469452836,-151.0,0.000249,7]
[361323014,1747469452845,-151.0,0.000249,7]
[361323015,1747469452855,-2231.875379,0.000249,7]
[361323016,1747469452864,-151.0,0.000249,7]
[361323017,1747469452872,-151.0,0.000249,7]
[361323018,1747469452881,-151.0,0.000249,7]
[361323019,1747469452891,-2231.875379,0.000249,7]
[361323020,1747469452900,-151.0,0.000249,7]
[361323021,1747469452909,-567.981358,0.000249,7]
[361323022,1747469452918,-567.981358,0.000249,7]
[361323023,1747469452927,-152.714052,0.000249,7]
[361323024,1747469452936,-151.0,0.000249,7]
[361323025,1747469452945,-156.668266,0.000249,7]
[361323026,1747469452954,-156.668266,0.000249,7]
[361323027,1747469452963,-151.0,0.000249,7]
[361323028,1747469452972,-151.0,0.000249,7]
[361323029,1747469452981,-151.0,0.000249,7]
[361323030,1747469452990,-165.94765,0.000249,7]
[361323031,1747469452999,-150.0,0.00024911,2]
[361323032,1747469453008,-150.0,0.00024922,2]
[361323033,1747469453017,-150.0,0.0002494,2]
[361323034,1747469453026,-150.0,0.0002494,2]
[361323035,1747469453035,-150.0,0.00024959,2]
[361323036,1747469453044,-150.0,0.00024968,2]
[361323037,1747469453054,-300.0,0.00024969,10]
[361323038,1747469453064,-300.0,0.00024969,10]
[361323039,1747469453074,-300.0,0.00024969,10]
[361323040,1747469453083,-1000.0,0.0002497,2]
[361323041,1747469453092,-1000.0,0.0002497,2]
[361323042,1747469453102,-1000.0,0.0002497,2]
[361323043,1747469453111,-1000.0,0.0002497,2]
[361323044,1747469453121,-500.0,0.0002497,2]
[361323045,1747469453130,-500.0,0.0002497,2]
[361323046,1747469453139,-500.0,0.0002497,2]
[361323047,1747469453148,-500.0,0.0002497,2]
[361323048,1747469453158,-500.0,0.0002497,2]
[361323049,1747469453167,-1000.0,0.0002497,2]
[361323050,1747469453177,-1000.0,0.0002497,2]
[361323051,1747469453187,-500.0,0.0002497,2]
[361323052,1747469453196,-448.28121294,0.00024982,10]
[361323053,1747469453205,-300.0,0.00024982,10]
[361323054,1747469453214,-113519.5351801,0.00024983,2]
[361323055,1747469453224,-300.0,0.00024989,10]
[361323056,1747469453233,-4545.44414581,0.0002499,4]
[361323057,1747469453242,-33253.10182672,0.0002499,5]
[361323058,1747469453251,-1000.0,0.00025,5]
[361323059,1747469453260,-200.61245216,0.00025,2]
[361323060,1747469453270,-1725.20566538,0.00025,2]
[361323061,1747469453279,-257.27051252,0.00025,2]
[361323062,1747469453288,-345.01970168,0.00025,2]
[361323063,1747469453298,-200.0,0.00025,2]
[361323064,1747469453309,-2942.0978247,0.00025,2]
[361323065,1747469453319,-1764.71949757,0.00025,2]
[361323066,1747469453330,-579.98328022,0.00025,2]
[361323067,1747469453340,-1028.83992322,0.00025,2]
[361323068,1747469453348,-161.69049717,0.00025,2]
[361323069,1747469453359,-4010.70858759,0.00025,2]
[361323070,1747469453369,-160.0,0.00025,3]
[361323071,1747469453378,-2000.0,0.00025,2]
[361323072,1747469453388,-2000.0,0.00025,2]
[361323073,1747469453397,-1500.0,0.00025,2]
[361323074,1747469453408,-4439.29290553,0.00025,2]
[361323075,1747469453418,-900.0,0.00025,26]
[361323076,1747469453427,-189.34741828,0.00025,3]
[361323077,1747469453436,-13678.65409386,0.00025,2]
[361323078,1747469453454,-1337.615544,0.00025,2]
[361323079,1747469455525,-581.0,0.00021225,2]
[361323080,1747469455536,-242.91957499,0.00025,2]
[361323081,1747469455547,-1665.27322894,0.00025,2]
[361323082,1747469455557,-291.68678148,0.00025,5]
[361323083,1747469455568,-771.78583346,0.00025,7]
[361323084,1747469455577,-375.05415612,0.00025,2]
[361323085,1747469455669,-624.94584388,0.00025,2]
[361323086,1747469455679,-149.37596471,0.00025,5]
[361323087,1747469455692,-1362.05119334,0.00025,5]
[361323088,1747469455701,-1240.9346657,0.00025,10]
[361323089,1747469455711,-856.41887315,0.00025,5]
[361323090,1747469455722,-7339.78318862,0.00025,5]
[361323091,1747469455753,-169.01491288,0.00025,5]